fUST/lending_fUST_20241219
["ID","MTS","AMOUNT","RATE_DAILY","PERIOD"]
[345927509,1734551443549,-764.28,0.00024931,6]
[345927510,1734551443558,-526.8,0.00024931,6]
[345927511,1734551443567,-367.450255,0.00024931,6]
[345927513,1734551443577,-500.0,0.00024931,6]
[345927514,1734551443586,-500.0,0.00024931,6]
[345927515,1734551443595,-4148.7,0.00024931,6]
[345927516,1734551443605,-500.0,0.00024931,6]
[345927517,1734551443614,-500.0,0.00024931,6]
[345927518,1734551443624,-19628.44,0.00024931,6]
[345927519,1734551443633,-586.53467181,0.00024931,6]
[345927520,1734551443643,-5624.73,0.00024931,2]
[345927521,1734551443652,-5454.43,0.00024931,6]
[345927522,1734551443662,-500.0,0.00024931,6]
[345927523,1734551443671,-598.17,0.00024931,6]
[345927524,1734551443679,-500.0,0.00024931,6]
[345927525,1734551443688,-3275.31,0.00024931,6]
[345927526,1734551443697,-768.65,0.00024931,6]
[345927527,1734551443707,-500.0,0.00024931,6]
[345927528,1734551443716,-500.0,0.00024931,6]
[345927529,1734551443725,-1257.1,0.00024931,6]
[345927530,1734551443739,-692.61,0.00024931,6]
[345927531,1734551443748,-6524.96,0.00024931,6]
[345927532,1734551443757,-500.0,0.00024931,6]
[345927533,1734551443766,-500.0,0.00024931,6]
[345927534,1734551443776,-500.0,0.00024931,6]
[345927535,1734551443786,-14013.69,0.00024931,6]
[345927536,1734551443795,-500.0,0.00024931,6]
[345927537,1734551443804,-500.0,0.00024931,6]
[345927538,1734551443813,-500.0,0.00024931,6]
[345927539,1734551443823,-505.01459959,0.00024931,6]
[345927540,1734551443832,-2781.54,0.00024931,6]
[345927541,1734551443841,-524.81568488,0.00024931,6]
[345927542,1734551443850,-999.0,0.00024958,7]
[345927543,1734551443860,-999.0,0.00024958,7]
[345927544,1734551443869,-999.0,0.00024958,7]
[345927545,1734551443878,-999.0,0.00024958,7]
[345927546,1734551443887,-999.0,0.00024958,7]
[345927547,1734551443896,-999.0,0.00024958,7]
[345927548,1734551443905,-999.0,0.00024958,7]
[345927549,1734551443915,-999.0,0.00024958,7]
[345927550,1734551443924,-999.0,0.00024958,7]
[345927551,1734551443933,-999.0,0.00024958,7]
[345927552,1734551443942,-999.0,0.00024958,7]
[345927553,1734551443951,-999.0,0.00024958,7]
[345927554,1734551443961,-999.0,0.00024958,7]
[345927555,1734551443971,-999.0,0.00024958,7]
[345927556,1734551443980,-999.0,0.00024958,7]
[345927557,1734551443990,-739.55592085,0.00024958,7]
[345927558,1734551443999,-420.91716153,0.00024973,2]
[345927559,1734551444008,-500.0,0.00024973,2]
[345927560,1734551444017,-500.0,0.00024973,2]
[345927561,1734551444027,-500.0,0.00024973,2]
[345927562,1734551444038,-500.0,0.00024973,2]
[345927563,1734551444048,-1133.32566583,0.00024995,2]
[345927564,1734551444057,-216534.01191432,0.00025,2]
[345927565,1734551444067,-20561.46168308,0.00025,30]
[345927566,1734551444076,-10354.81,0.00025,7]
[345927567,1734551444086,-26280.93973418,0.00025,2]
[345927568,1734551444096,-2000.0,0.00025,2]
[345927569,1734551444105,-5000.0,0.00025,2]
[345927570,1734551444115,-5000.0,0.00025,2]
[345927571,1734551444124,-10364.0,0.00025,2]
[345927572,1734551444135,-5001.8885,0.00025,2]
[345927573,1734551444144,-33915.40790627,0.00025,15]
[345927574,1734551444154,-166.5257412,0.00025,2]
[345927575,1734551444164,-204.67640323,0.00025,2]
[345927576,1734551444174,-53835.69338666,0.00025,2]
[345927577,1734551444187,-348.9285132,0.00025,2]
[345927578,1734551444208,-1000.0,0.00025,25]
[345927579,1734551444217,-300.0,0.00025,2]
[345927580,1734551444227,-162.9,0.00025,2]
[345927581,1734551444236,-9078.24528,0.00025,7]
[345927582,1734551444248,-67379.99636923,0.00025,2]
[345927583,1734551444259,-500.0,0.00025,30]
[345927584,1734551444270,-240.6,0.00025,2]
[345927585,1734551444280,-39627.58935724,0.00025,7]
[345927586,1734551444289,-507.40097713,0.00025,30]
[345927587,1734551444299,-700.0,0.00025,30]
[345927588,1734551444309,-700.0,0.00025,30]
[345927589,1734551444319,-700.0,0.00025,30]
[345927590,1734551444330,-700.0,0.00025,30]
[345927591,1734551444339,-700.0,0.00025,30]
[345927592,1734551444348,-700.0,0.00025,30]
[345927593,1734551444358,-700.0,0.00025,30]
[345927594,1734551444369,-700.0,0.00025,30]
[345927595,1734551444386,-700.0,0.00025,30]
[345927596,1734551444396,-700.0,0.00025,30]
[345927597,1734551444405,-700.0,0.00025,30]
[345927598,1734551444415,-700.0,0.00025,30]
[345927599,1734551444426,-810.64192243,0.00025,30]
[345927600,1734551444436,-1900.0,0.00025,30]
[345927601,1734551444446,-1900.0,0.00025,30]
[345927602,1734551444456,-1900.0,0.00025,30]
[345927603,1734551444466,-1900.0,0.00025,30]
[345927604,1734551444475,-1900.0,0.00025,30]
[345927605,1734551444484,-1900.0,0.00025,30]
[345927606,1734551444494,-1900.0,0.00025,30]
[345927607,1734551444503,-1900.0,0.00025,30]
[345927608,1734551444513,-1900.0,0.00025,30]
[345927609,1734551444522,-1200.0,0.00025,30]
[345927610,1734551444532,-1900.0,0.00025,30]
[345927611,1734551444541,-1200.0,0.00025,30]
[345927612,1734551444551,-1900.0,0.00025,30]
[345927613,1734551444560,-1200.0,0.00025,30]
[345927614,1734551444569,-1900.0,0.00025,30]
[345927615,1734551444578,-1200.0,0.00025,30]
[345927616,1734551444588,-1900.0,0.00025,30]
[345927617,1734551444597,-1200.0,0.00025,30]
[345927618,1734551444607,-3620.9421444,0.00025,30]
[345927619,1734551444615,-1200.0,0.00025,30]
[345927620,1734551444624,-1200.0,0.00025,30]
[345927621,1734551444633,-1200.0,0.00025,30]
[345927622,1734551444643,-1200.0,0.00025,30]
[345927623,1734551444651,-1200.0,0.00025,30]
[345927624,1734551444661,-1200.0,0.00025,30]
[345927625,1734551444670,-1200.0,0.00025,30]
[345927626,1734551444680,-1200.0,0.00025,30]
[345927627,1734551444708,-1972.08127187,0.00025,30]
[345927628,1734551444718,-700.0,0.00025,30]
[345927629,1734551444728,-700.0,0.00025,30]
[345927630,1734551444738,-700.0,0.00025,30]
[345927631,1734551444752,-700.0,0.00025,30]
[345927632,1734551444761,-700.0,0.00025,30]
[345927633,1734551444771,-700.0,0.00025,30]
[345927634,1734551444781,-700.0,0.00025,30]
[345927635,1734551444791,-700.0,0.00025,30]
[345927636,1734551444801,-700.0,0.00025,30]
[345927637,1734551444811,-700.0,0.00025,30]
[345927638,1734551444823,-700.0,0.00025,30]
[345927639,1734551444833,-700.0,0.00025,30]
[345927640,1734551444843,-1303.35181548,0.00025,30]
[345927641,1734551444852,-69357.21800375,0.00025,2]
[345927642,1734551444862,-1133.32566583,0.00025141,2]
[345927643,1734551444871,-751.19699192,0.00025165,2]
[345927644,1734551444881,-5000.0,0.000252,2]
[345927645,1734551444891,-299.58,0.00025205,6]
[345927646,1734551444901,-201.70263459,0.00025205,6]
[345927647,1734551444911,-500.0,0.00025205,6]
[345927648,1734551444920,-200.12,0.00025205,6]
[345927649,1734551444930,-500.0,0.00025205,7]
[345927650,1734551444939,-500.0,0.00025205,7]
[345927651,1734551444949,-500.0,0.00025205,7]
[345927652,1734551444958,-500.0,0.00025205,7]
[345927653,1734551444967,-500.0,0.00025205,7]
[345927654,1734551444976,-500.0,0.00025205,7]
[345927655,1734551444985,-500.0,0.00025205,7]
[345927656,1734551444994,-500.0,0.00025205,7]
[345927657,1734551445003,-244.88,0.00025205,7]
[345927658,1734551445013,-500.0,0.00025205,6]
[345927659,1734551445022,-500.0,0.00025205,6]
[345927660,1734551445031,-500.0,0.00025205,6]
[345927661,1734551445041,-500.0,0.00025205,6]
[345927662,1734551445050,-508.29986113,0.00025205,6]
[345927663,1734551445060,-500.0,0.00025205,6]
[345927664,1734551445070,-523.214324,0.00025205,6]
[345927665,1734551445080,-500.0,0.00025205,6]
[345927666,1734551445090,-500.0,0.00025205,6]
[345927667,1734551445100,-779.44,0.00025205,6]
[345927668,1734551445111,-500.0,0.00025205,6]
[345927669,1734551445122,-454.96050869,0.00025205,6]
[345927670,1734551445132,-500.0,0.00025205,6]
[345927671,1734551445143,-500.0,0.00025205,6]
[345927672,1734551445153,-500.0,0.00025205,6]
[345927673,1734551445163,-500.0,0.00025205,6]
[345927674,1734551445173,-500.0,0.00025205,6]
[345927675,1734551445184,-500.0,0.00025205,6]
[345927676,1734551445212,-860.55,0.00025205,6]
[345927677,1734551445222,-500.0,0.00025205,6]
[345927678,1734551445232,-500.0,0.00025205,6]
[345927679,1734551445244,-500.0,0.00025205,6]
[345927680,1734551445258,-500.0,0.00025205,6]
[345927681,1734551445268,-500.0,0.00025205,6]
[345927682,1734551445278,-500.0,0.00025205,6]
[345927683,1734551445288,-500.0,0.00025205,6]
[345927684,1734551445298,-500.0,0.00025205,6]
[345927685,1734551445308,-528.63,0.00025205,6]
[345927686,1734551445317,-500.0,0.00025205,6]
[345927687,1734551445327,-500.0,0.00025205,6]
[345927688,1734551445336,-616.12,0.00025205,6]
[345927689,1734551445345,-500.0,0.00025205,6]
[345927690,1734551445355,-535.52,0.00025205,6]
[345927691,1734551445364,-500.0,0.00025205,6]
[345927692,1734551445374,-500.0,0.00025205,6]
[345927693,1734551445383,-500.0,0.00025205,6]
[345927694,1734551445392,-500.0,0.00025205,6]
[345927695,1734551445402,-500.0,0.00025205,6]
[345927696,1734551445411,-500.0,0.00025205,6]
[345927697,1734551445421,-1651.25,0.00025205,6]
[345927698,1734551445431,-727.73,0.00025205,6]
[345927699,1734551445440,-639.3569916,0.00025205,6]
[345927700,1734551445449,-500.0,0.00025205,6]
[345927701,1734551445459,-500.0,0.00025205,6]
[345927702,1734551445469,-1616.74,0.00025205,2]
[345927703,1734551445479,-500.0,0.00025205,6]
[345927704,1734551445488,-500.0,0.00025205,6]
[345927705,1734551445498,-2018.44,0.00025205,6]
[345927706,1734551445508,-500.0,0.00025205,6]
[345927709,1734551445518,-595.68499881,0.00025205,6]
[345927712,1734551445528,-500.0,0.00025205,6]
[345927715,1734551445538,-500.0,0.00025205,6]
[345927718,1734551445548,-500.0,0.00025205,6]
[345927721,1734551445558,-1998.26,0.00025205,6]
[345927724,1734551445568,-500.0,0.00025205,6]
[345927728,1734551445578,-500.0,0.00025205,6]
[345927731,1734551445588,-998.35,0.00025205,6]
[345927733,1734551445597,-515.98,0.00025205,6]
[345927735,1734551445608,-522.53,0.00025205,6]
[345927738,1734551445618,-1250.65,0.00025205,6]
[345927741,1734551445628,-500.0,0.00025205,6]
[345927744,1734551445637,-2056.33,0.00025205,6]
[345927747,1734551445646,-1100.45,0.00025205,6]
[345927750,1734551445656,-1421.91,0.00025205,6]
[345927752,1734551445666,-500.0,0.00025205,6]
[345927754,1734551445675,-500.0,0.00025205,6]
[345927756,1734551445684,-500.0,0.00025205,6]
[345927758,1734551445711,-500.0,0.00025205,6]
[345927760,1734551445721,-558.23,0.00025205,6]
[345927762,1734551445733,-500.0,0.00025205,6]
[345927764,1734551445743,-500.0,0.00025205,6]
[345927766,1734551445752,-500.0,0.00025205,6]
[345927768,1734551445761,-500.0,0.00025205,6]
[345927770,1734551445770,-500.0,0.00025205,6]
[345927772,1734551445782,-835.67,0.00025205,6]
[345927774,1734551445792,-298.23921369,0.00025205,6]
[345927776,1734551445801,-767.61,0.00025205,6]
[345927778,1734551445812,-615.15,0.00025205,6]
[345927780,1734551445821,-500.0,0.00025205,6]
[345927782,1734551445831,-500.0,0.00025205,6]
[345927784,1734551445840,-500.0,0.00025205,6]
[345927786,1734551445849,-500.0,0.00025205,6]
[345927788,1734551445858,-500.0,0.00025205,6]
[345927790,1734551445867,-500.0,0.00025205,6]
[345927792,1734551445876,-500.0,0.00025205,6]
[345927794,1734551445886,-500.0,0.00025205,6]
[345927796,1734551445896,-499.17355576,0.00025205,2]
[345927798,1734551445905,-500.0,0.00025205,6]
[345927800,1734551445914,-500.0,0.00025205,6]
[345927802,1734551445923,-7877.81,0.00025205,6]
[345927804,1734551445933,-500.0,0.00025205,6]
[345927806,1734551445942,-826.65,0.00025205,6]
[345927808,1734551445951,-2028.62,0.00025205,6]
[345927810,1734551445961,-297.43214165,0.00025205,6]
[345927812,1734551445971,-654.94,0.00025205,6]
[345927814,1734551445981,-500.0,0.00025205,6]
[345927816,1734551445990,-500.0,0.00025205,6]
[345927818,1734551446000,-500.0,0.00025205,6]
[345927820,1734551446009,-726.33,0.00025205,6]
[345927822,1734551446018,-1290.67,0.00025205,6]
[345927825,1734551446028,-500.0,0.00025205,6]
[345927827,1734551446037,-500.0,0.00025205,6]
[345927829,1734551446047,-3637.59,0.00025205,2]
[345927831,1734551446056,-506.71374085,0.00025205,6]
[345927833,1734551446066,-589.87,0.00025205,6]
[345927835,1734551446075,-500.0,0.00025205,6]
[345927837,1734551446085,-500.0,0.00025205,6]
[345927839,1734551446094,-713.74,0.00025205,6]
[345927841,1734551446103,-1171.37,0.00025205,6]
[345927843,1734551446113,-517.7515813,0.00025205,6]
[345927845,1734551446123,-707.21,0.00025205,6]
[345927847,1734551446132,-543.88,0.00025205,6]
[345927849,1734551446142,-500.0,0.00025205,6]
[345927850,1734551446151,-6770.59,0.00025205,6]
[345927851,1734551446161,-500.0,0.00025205,6]
[345927852,1734551446170,-500.0,0.00025205,6]
[345927853,1734551446180,-500.0,0.00025205,6]
[345927854,1734551446198,-500.0,0.00025205,6]
[345927855,1734551446215,-1302.56,0.00025205,6]
[345927856,1734551446225,-500.0,0.00025205,2]
[345927857,1734551446236,-500.0,0.00025205,6]
[345927858,1734551446246,-12886.17,0.00025205,6]
[345927859,1734551446255,-626.70133487,0.00025205,6]
[345927860,1734551446265,-500.0,0.00025205,6]
[345927861,1734551446275,-500.0,0.00025205,6]
[345927862,1734551446286,-2148.68,0.00025205,2]
[345927864,1734551446296,-56092.59,0.00025205,6]
[345927866,1734551446306,-500.0,0.00025205,6]
[345927868,1734551446316,-500.0,0.00025205,6]
[345927870,1734551446326,-500.0,0.00025205,6]
[345927872,1734551446341,-25505.73,0.00025205,6]
[345927874,1734551446356,-886.42,0.00025205,6]
[345927876,1734551446366,-500.0,0.00025205,6]
[345927878,1734551446376,-635.00975318,0.00025205,6]
[345927880,1734551446385,-500.0,0.00025205,6]
[345927882,1734551446395,-500.0,0.00025205,6]
[345927884,1734551446405,-583.39,0.00025205,6]
[345927886,1734551446415,-12880.49,0.00025205,6]
[345927887,1734551446426,-8088.51,0.00025205,6]
[345927888,1734551446436,-500.0,0.00025205,6]
[345927890,1734551446446,-500.0,0.00025205,6]
[345927907,1734551446595,-1241.83,0.00025205,6]
[345927909,1734551446604,-151.78886911,0.00025205,6]
[345927911,1734551446614,-5765.69,0.00025205,6]
[345927913,1734551446624,-543.51865788,0.00025205,6]
[345927915,1734551446633,-4133.35,0.00025205,6]
[345927917,1734551446643,-500.0,0.00025205,6]
[345927919,1734551446652,-6130.73,0.00025205,6]
[345927921,1734551446662,-6896.95,0.00025205,6]
[345927923,1734551446671,-500.0,0.00025205,6]
[345927925,1734551446681,-500.0,0.00025205,6]
[345927927,1734551446690,-245.40214998,0.00025205,6]
[345927929,1734551446707,-1435.02,0.00025205,6]
[345927932,1734551446727,-500.0,0.00025205,6]
[345927934,1734551446742,-1270.61,0.00025205,6]
[345927936,1734551446751,-2071.69,0.00025205,6]
[345927938,1734551446760,-500.0,0.00025205,6]
[345927940,1734551446770,-500.0,0.00025205,6]
[345927942,1734551446780,-439.78121412,0.00025205,6]
[345927944,1734551446790,-500.0,0.00025205,6]
[345927946,1734551446799,-613.09,0.00025205,6]
[345927948,1734551446808,-500.0,0.00025205,6]
[345927950,1734551446818,-500.0,0.00025205,6]
[345927952,1734551446828,-500.0,0.00025205,6]
[345927954,1734551446837,-500.0,0.00025205,6]
[345927956,1734551446847,-764.28,0.00025205,6]
[345927958,1734551446855,-526.8,0.00025205,6]
[345927960,1734551446864,-500.0,0.00025205,6]
[345927962,1734551446874,-500.0,0.00025205,6]
[345927964,1734551446884,-4148.7,0.00025205,6]
[345927966,1734551446893,-500.0,0.00025205,6]
[345927968,1734551446902,-500.0,0.00025205,6]
[345927970,1734551446912,-19628.44,0.00025205,6]
[345927972,1734551446922,-5624.73,0.00025205,2]
[345927974,1734551446931,-5454.43,0.00025205,6]
[345927976,1734551446940,-500.0,0.00025205,6]
[345927978,1734551446950,-598.17,0.00025205,6]
[345927980,1734551446959,-500.0,0.00025205,6]
[345927982,1734551446969,-3275.31,0.00025205,6]
[345927984,1734551446978,-768.65,0.00025205,6]
[345927986,1734551446988,-500.0,0.00025205,6]
[345927988,1734551446997,-1849.78,0.00025205,4]
[345927990,1734551447006,-692.61,0.00025205,6]
[345927992,1734551447015,-1257.1,0.00025205,6]
[345927994,1734551447025,-500.0,0.00025205,2]
[345927996,1734551447034,-6524.96,0.00025205,6]
[345927998,1734551447044,-500.0,0.00025205,6]
[345928000,1734551447054,-500.0,0.00025205,6]
[345928002,1734551447064,-500.0,0.00025205,6]
[345928004,1734551447073,-14013.69,0.00025205,6]
[345928006,1734551447083,-500.0,0.00025205,6]
[345928008,1734551447092,-500.0,0.00025205,6]
[345928010,1734551447102,-186.76,0.00025205,6]
[345928012,1734551447111,-2781.54,0.00025205,6]
[345928014,1734551447120,-1000.0,0.00025221,2]
[345928016,1734551447132,-1000.0,0.00025221,2]
[345928018,1734551447141,-434.0,0.0002528,15]
[345928020,1734551447151,-1133.32566583,0.00025287,2]
[345928022,1734551447160,-200.0,0.000253,2]
[345928024,1734551447170,-10000.0,0.000253,60]
[345928026,1734551447180,-161.13339604,0.00025322,5]
[345928028,1734551447190,-4000.0,0.00025345,3]
[345928030,1734551447199,-300.0,0.000254,2]
[345928032,1734551447227,-1103.380887,0.00025401,3]
[345928034,1734551447237,-1133.32566583,0.00025433,2]
[345928036,1734551447247,-9434.67138717,0.00025455,2]
[345928038,1734551447256,-5000.0,0.00025455,5]
[345928040,1734551447267,-5000.0,0.00025455,5]
[345928042,1734551447277,-8955.8988769,0.00025455,3]
[345928044,1734551447288,-5000.0,0.00025455,4]
[345928046,1734551447298,-5000.0,0.00025455,3]
[345928048,1734551447309,-976.56772657,0.00025455,2]
[345928050,1734551447318,-7687.65781618,0.00025455,5]
[345928052,1734551447328,-6464.75831037,0.0002546,5]
[345928054,1734551447337,-536.07109258,0.00025473,2]
[345928056,1734551447347,-500.0,0.00025473,2]
[345928058,1734551447356,-500.0,0.00025473,2]
[345928060,1734551447365,-500.0,0.00025479,6]
[345928062,1734551447375,-500.0,0.00025479,7]
[345928064,1734551447386,-500.0,0.00025479,7]
[345928066,1734551447395,-500.0,0.00025479,7]
[345928068,1734551447404,-500.0,0.00025479,7]
[345928070,1734551447414,-500.0,0.00025479,7]
[345928072,1734551447423,-514.84771818,0.00025479,7]
[345928074,1734551447432,-500.0,0.00025479,6]
[345928076,1734551447442,-264.58867519,0.00025479,6]
[345928078,1734551447451,-500.0,0.00025479,6]
[345928080,1734551447460,-500.0,0.00025479,6]
[345928082,1734551447470,-500.0,0.00025479,6]
[345928084,1734551447480,-500.0,0.00025479,6]
[345928086,1734551447489,-500.0,0.00025479,6]
[345928088,1734551447498,-779.44,0.00025479,6]
[345928090,1734551447507,-500.0,0.00025479,6]
[345928092,1734551447516,-500.0,0.00025479,6]
[345928094,1734551447525,-500.0,0.00025479,6]
[345928096,1734551447535,-500.0,0.00025479,6]
[345928098,1734551447544,-500.0,0.00025479,6]
[345928100,1734551447553,-500.0,0.00025479,6]
[345928102,1734551447563,-500.0,0.00025479,6]
[345928104,1734551447572,-860.55,0.00025479,6]
[345928106,1734551447582,-500.0,0.00025479,6]
[345928108,1734551447591,-500.0,0.00025479,6]
[345928110,1734551447600,-507.99075637,0.00025479,6]
[345928112,1734551447609,-500.0,0.00025479,6]
[345928114,1734551447619,-500.0,0.00025479,6]
[345928116,1734551447628,-500.0,0.00025479,6]
[345928118,1734551447638,-500.0,0.00025479,6]
[345928120,1734551447647,-500.0,0.00025479,6]
[345928122,1734551447657,-528.63,0.00025479,6]
[345928124,1734551447666,-500.0,0.00025479,6]
[345928126,1734551447676,-500.0,0.00025479,6]
[345928128,1734551447686,-616.12,0.00025479,6]
[345928130,1734551447695,-500.0,0.00025479,6]
[345928132,1734551447704,-535.52,0.00025479,6]
[345928134,1734551447728,-500.0,0.00025479,6]
[345928136,1734551447740,-500.0,0.00025479,6]
[345928138,1734551447750,-500.0,0.00025479,6]
[345928140,1734551447761,-500.0,0.00025479,6]
[345928142,1734551447770,-500.0,0.00025479,6]
[345928144,1734551447781,-500.0,0.00025479,6]
[345928146,1734551447790,-1651.25,0.00025479,6]
[345928148,1734551447799,-727.73,0.00025479,6]
[345928150,1734551447808,-500.0,0.00025479,6]
[345928152,1734551447819,-500.0,0.00025479,6]
[345928154,1734551447828,-1616.74,0.00025479,2]
[345928156,1734551447837,-500.0,0.00025479,6]
[345928158,1734551447846,-500.0,0.00025479,6]
[345928160,1734551447855,-2018.44,0.00025479,6]
[345928162,1734551447865,-152.36418692,0.00025479,6]
[345928164,1734551447874,-500.0,0.00025479,6]
[345928166,1734551447884,-500.0,0.00025479,6]
[345928168,1734551447893,-500.0,0.00025479,6]
[345928170,1734551447902,-1998.26,0.00025479,6]
[345928172,1734551447911,-500.0,0.00025479,6]
[345928174,1734551447920,-500.0,0.00025479,6]
[345928176,1734551447929,-998.35,0.00025479,6]
[345928178,1734551447939,-515.98,0.00025479,6]
[345928180,1734551447948,-522.53,0.00025479,6]
[345928182,1734551447957,-1250.65,0.00025479,6]
[345928184,1734551447966,-500.0,0.00025479,6]
[345928186,1734551447975,-2056.33,0.00025479,6]
[345928188,1734551447984,-1100.45,0.00025479,6]
[345928190,1734551447993,-1421.91,0.00025479,6]
[345928192,1734551448003,-500.0,0.00025479,6]
[345928194,1734551448012,-500.0,0.00025479,6]
[345928196,1734551448021,-500.0,0.00025479,6]
[345928198,1734551448031,-500.0,0.00025479,6]
[345928200,1734551448041,-558.23,0.00025479,6]
[345928202,1734551448050,-500.0,0.00025479,6]
[345928204,1734551448060,-500.0,0.00025479,6]
[345928206,1734551448069,-500.0,0.00025479,6]
[345928208,1734551448078,-500.0,0.00025479,6]
[345928210,1734551448087,-500.0,0.00025479,6]
[345928212,1734551448097,-835.67,0.00025479,6]
[345928214,1734551448108,-767.61,0.00025479,6]
[345928216,1734551448122,-615.15,0.00025479,6]
[345928218,1734551448131,-500.0,0.00025479,6]
[345928220,1734551448141,-502.0918,0.00025479,6]
[345928222,1734551448150,-500.0,0.00025479,6]
[345928224,1734551448160,-500.0,0.00025479,6]
[345928226,1734551448169,-500.0,0.00025479,6]
[345928228,1734551448178,-635.72000082,0.00025479,6]
[345928230,1734551448187,-500.0,0.00025479,6]
[345928232,1734551448197,-500.0,0.00025479,6]
[345928234,1734551448206,-500.0,0.00025479,6]
[345928236,1734551448230,-500.0,0.00025479,6]
[345928238,1734551448241,-7877.81,0.00025479,6]
[345928240,1734551448250,-500.0,0.00025479,6]
[345928242,1734551448262,-826.65,0.00025479,6]
[345928245,1734551448272,-2028.62,0.00025479,6]
[345928246,1734551448283,-654.94,0.00025479,6]
[345928249,1734551448292,-500.0,0.00025479,6]
[345928250,1734551448302,-500.0,0.00025479,6]
[345928252,1734551448312,-500.0,0.00025479,6]
[345928254,1734551448322,-1290.67,0.00025479,6]
[345928257,1734551448333,-726.33,0.00025479,6]
[345928259,1734551448342,-500.0,0.00025479,6]
[345928261,1734551448351,-500.0,0.00025479,6]
[345928263,1734551448360,-3637.59,0.00025479,2]
[345928265,1734551448369,-589.87,0.00025479,6]
[345928266,1734551448378,-500.0,0.00025479,6]
[345928267,1734551448387,-500.0,0.00025479,6]
[345928268,1734551448396,-713.74,0.00025479,6]
[345928269,1734551448406,-1171.37,0.00025479,6]
[345928271,1734551448416,-707.21,0.00025479,6]
[345928273,1734551448425,-543.88,0.00025479,6]
[345928275,1734551448435,-500.0,0.00025479,6]
[345928276,1734551448444,-6770.59,0.00025479,6]
[345928277,1734551448454,-500.0,0.00025479,6]
[345928278,1734551448463,-500.0,0.00025479,6]
[345928279,1734551448472,-500.0,0.00025479,6]
[345928280,1734551448481,-500.0,0.00025479,6]
[345928281,1734551448491,-1302.56,0.00025479,6]
[345928282,1734551448501,-500.0,0.00025479,2]
[345928283,1734551448511,-500.0,0.00025479,6]
[345928284,1734551448520,-12886.17,0.00025479,6]
[345928285,1734551448529,-500.0,0.00025479,6]
[345928286,1734551448539,-500.0,0.00025479,6]
[345928287,1734551448548,-2148.68,0.00025479,2]
[345928288,1734551448558,-56092.59,0.00025479,6]
[345928289,1734551448568,-500.0,0.00025479,6]
[345928290,1734551448577,-500.0,0.00025479,6]
[345928291,1734551448587,-500.0,0.00025479,6]
[345928292,1734551448596,-25505.73,0.00025479,6]
[345928293,1734551448606,-886.42,0.00025479,6]
[345928294,1734551448616,-500.0,0.00025479,6]
[345928295,1734551448626,-500.0,0.00025479,6]
[345928296,1734551448636,-500.0,0.00025479,6]
[345928297,1734551448646,-583.39,0.00025479,6]
[345928298,1734551448656,-12880.49,0.00025479,6]
[345928299,1734551448666,-8088.51,0.00025479,6]
[345928300,1734551448676,-293.22424659,0.00025479,6]